bitfinex/quotes_ETHUSD_20250602
["timestamp","ask_amount","ask_price","bid_price","bid_amount"]
[1748833728136,8.0,2501.9,2501.6,3.9973792]
[1748833728613,8.0,2501.9,2501.5,3.99754811]
[1748833728938,8.0,2502.2,2501.3,3.99792108]
[1748833729140,8.0,2502.0,2501.6,3.99729182]
[1748833729643,4.229,2501.9,2501.6,3.99729182]
[1748833729846,4.229,2501.9,2501.7,3.99727788]
[1748833730433,4.229,2501.9,2501.4,3.997629]
[1748833730743,0.8129,2501.8,2501.4,3.997629]
[1748833731308,0.8129,2501.8,2501.2,3.9980602]
[1748833731827,0.8129,2501.8,2501.4,3.99764377]
[1748833732914,0.8129,2501.8,2501.5,3.99759888]
[1748833733115,0.8129,2501.8,2501.4,3.99769808]
[1748833734224,4.81010948,2501.8,2501.1,0.8295]
[1748833734426,4.81010948,2501.8,2501.1,4.82771244]
[1748833734648,4.81010948,2501.8,2501.3,3.99784038]
[1748833735054,0.8129,2501.8,2501.3,3.99784038]
[1748833735249,0.8129,2501.8,2501.1,4.82773042]
[1748833735250,4.81007565,2501.8,2501.1,4.82773042]
[1748833735449,0.8129,2501.8,2501.3,3.9978207]
[1748833735654,12.81004429,2501.8,2501.1,4.82763687]
[1748833735864,8.0,2501.6,2501.2,3.99807378]
[1748833736046,4.22,2501.5,2501.2,3.99807378]
[1748833738251,4.22,2501.5,2501.4,3.99776125]
[1748833738426,4.22,2501.5,2501.3,3.99785687]
[1748833740065,4.22,2501.5,2501.1,4.82769222]
[1748833740066,4.22,2501.5,2501.4,3.99776125]
[1748833740232,4.22,2501.5,2501.3,3.99787344]
[1748833740966,4.22,2501.5,2501.2,3.99801809]
[1748833742957,4.21800128,2501.5,2501.2,3.99801809]
[1748833743465,3.59579958,2501.3,2500.9,3.99845612]
[1748833743673,4.207,2501.2,2500.8,3.99865779]
[1748833743843,4.207,2501.2,2500.7,3.99880896]
[1748833744381,4.207,2501.2,2500.8,3.99867878]
[1748833744673,4.207,2501.2,2500.9,3.9985478]
[1748833744980,4.207,2501.2,2500.8,3.99863749]
[1748833745161,4.207,2501.2,2500.6,4.75579324]
[1748833745162,8.0,2501.1,2500.6,0.7568]
[1748833745483,8.0,2501.1,2499.7,0.7795]
[1748833745484,0.7581,2500.5,2499.7,0.7795]
[1748833745778,0.7581,2500.5,2499.9,4.00010431]
[1748833745779,7.02589958,2500.4,2499.9,4.00010431]
[1748833746075,4.214,2500.4,2500.1,3.99978517]
[1748833746279,4.214,2500.4,2500.1,3.9998251]
[1748833746637,4.214,2500.4,2500.0,3.99994116]
[1748833747079,4.214,2500.4,2499.9,4.87809748]
[1748833747287,4.214,2500.4,2500.0,4.0]
[1748833747443,4.214,2500.4,2500.1,3.99969972]
[1748833747876,4.214,2500.4,2499.9,0.87800548]
[1748833748076,4.214,2500.4,2500.0,3.99995887]
[1748833748253,4.214,2500.4,2499.9,4.87810963]
[1748833748458,4.214,2500.4,2500.0,3.9999579]
[1748833748653,4.214,2500.4,2500.1,3.99982684]
[1748833748858,4.209,2500.3,2499.9,0.87800548]
[1748833749067,4.209,2500.3,2499.8,4.00029476]
[1748833749068,4.209,2500.3,2500.2,3.99968002]
[1748833753484,4.203,2500.3,2500.2,3.99968002]
[1748833754590,4.203,2500.3,2500.0,4.48777911]
[1748833754591,4.203,2500.3,2500.0,3.99990734]
[1748833754763,4.203,2500.3,2499.7,0.7795]
[1748833754963,4.203,2500.3,2499.7,4.77991444]
[1748833755262,4.203,2500.3,2500.1,3.9997544]
[1748833755697,4.203,2500.3,2500.2,3.99968002]
[1748833755988,4.203,2500.3,2500.0,3.9999837]
[1748833756169,0.7902,2500.7,2500.3,3.99946048]
[1748833756490,4.202,2500.6,2500.3,3.99946048]
[1748833757371,0.7902,2500.7,2500.2,3.99962856]
[1748833757685,0.7539,2501.3,2500.8,3.99862263]
[1748833757988,0.7539,2501.3,2500.9,3.99852007]
[1748833758351,0.7539,2501.3,2500.8,3.998617]
[1748833758552,4.203,2501.2,2501.0,3.99836536]
[1748833759298,4.203,2501.1,2501.0,3.99840063]
[1748833759990,4.203,2501.1,2500.9,3.99854393]
[1748833759991,4.203,2501.1,2500.4,0.7837]
[1748833760194,4.203,2501.1,2500.7,3.99884309]
[1748833760388,4.203,2501.1,2500.8,3.9986709]
[1748833761478,4.203,2501.1,2500.5,0.23176629]
[1748833761795,4.203,2501.1,2501.0,3.99840063]
[1748833762477,4.203,2501.1,2500.9,3.99849508]
[1748833764459,3.36401338,2501.4,2501.1,3.9982375]
[1748833764859,12.195,2501.3,2501.1,3.9982375]
[1748833765061,12.195,2501.3,2501.0,3.99836133]
[1748833766070,12.195,2501.3,2501.1,3.99810339]
[1748833766275,12.195,2501.3,2500.9,4.78523769]
[1748833766597,12.195,2501.3,2501.0,3.99829581]
[1748833766802,4.192,2501.2,2501.1,3.99822653]
[1748833767303,0.7856,2501.7,2501.3,3.99784461]
[1748833767493,4.191,2501.6,2501.3,3.99784461]
[1748833767698,0.7856,2501.7,2501.4,3.99773793]
[1748833767862,12.191,2501.5,2501.3,3.99785992]
[1748833768057,4.191,2501.5,2501.3,3.99785992]
[1748833768261,4.191,2501.5,2501.4,3.99776125]
[1748833768459,0.7856,2501.7,2501.4,3.99776125]
[1748833768677,8.0,2501.5,2501.4,3.99776125]
[1748833768877,0.7856,2502.0,2501.4,3.99769169]
[1748833769074,8.0,2501.8,2501.4,3.99769169]
[1748833769305,8.0,2501.6,2501.4,3.99769169]
[1748833769616,8.0,2501.6,2501.5,3.99760143]
[1748833770318,8.0,2501.6,2501.4,3.99771439]
[1748833770612,8.0,2501.6,2501.3,3.99789474]
[1748833770791,8.0,2501.6,2501.3,3.99780678]
[1748833770992,12.187,2501.5,2501.4,3.99776125]
[1748833771720,12.185,2501.5,2501.4,3.99776125]
[1748833772424,0.38969136,2502.2,2501.4,0.79956627]
[1748833772581,0.38969136,2502.2,2501.8,3.99700566]
[1748833772779,4.196,2502.1,2501.8,3.99700566]
[1748833773008,8.0,2502.0,2501.8,3.99700566]
[1748833774021,8.0,2502.0,2501.6,3.99744163]
[1748833774520,8.0,2502.0,2501.7,3.99725781]
[1748833774893,8.0,2502.0,2501.6,3.99737463]
[1748833775123,11.63625984,2502.0,2501.4,3.99766549]
[1748833775423,0.55,2501.5,2500.8,3.9987204]
[1748833775627,4.199,2501.4,2500.8,0.87487204]
[1748833775936,4.2,2501.3,2501.2,3.99808092]
[1748833776218,0.8243,2501.7,2501.4,3.99768997]
[1748833776420,12.2,2501.6,2501.5,3.99760143]
[1748833776924,12.199,2501.6,2500.9,0.812]
[1748833777089,12.199,2501.6,2501.4,3.99772538]
[1748833777421,4.199,2501.6,2501.5,3.99760143]
[1748833778130,4.199,2501.6,2501.4,3.99769229]
[1748833778286,4.199,2501.6,2501.0,4.88788989]
[1748833778287,4.199,2501.6,2501.1,3.99820407]
[1748833778486,4.199,2501.6,2501.2,3.997964]
[1748833778717,4.199,2501.6,2501.2,4.88653203]
[1748833779124,4.199,2501.6,2501.1,3.99817999]
[1748833779901,3.61355984,2501.5,2501.0,3.99833609]
[1748833780426,3.61355984,2501.5,2501.1,3.99821594]
[1748833780723,8.0,2501.4,2501.0,3.99835614]
[1748833780939,4.194,2501.3,2501.0,3.99835614]
[1748833781424,4.194,2501.3,2501.1,3.99822808]
[1748833781843,4.194,2501.3,2500.7,0.7743]
[1748833781844,0.7515,2501.2,2500.7,3.9988762]
[1748833781987,2.81195984,2501.1,2500.7,3.9988706]
[1748833782188,4.192,2501.0,2500.7,3.9988706]
[1748833782802,4.192,2501.0,2500.2,0.7829]
[1748833783003,4.192,2501.0,2500.5,3.99906368]
[1748833783210,4.192,2501.0,2500.6,3.99901715]
[1748833784323,8.19043413,2501.0,2500.5,3.99912965]
[1748833784652,0.7515,2500.9,2500.5,3.99912965]
[1748833785536,0.7515,2500.9,2500.4,3.99926928]
[1748833785740,0.7515,2500.9,2500.5,3.99920015]
[1748833785900,0.7515,2501.1,2500.8,3.9987204]
[1748833786234,4.19,2501.0,2500.8,3.9987204]
[1748833786405,4.19,2501.0,2500.7,3.99877679]
[1748833788233,4.19,2501.0,2500.4,0.53730298]
[1748833788537,4.19,2501.0,2500.8,3.99869591]
[1748833788929,12.19,2501.0,2500.9,3.99856051]
[1748833789112,12.187,2501.0,2500.9,3.99856051]
[1748833789737,8.0,2501.0,2500.9,3.99856051]
[1748833790421,12.186,2501.0,2500.9,3.99856051]
[1748833791428,4.185,2501.1,2500.9,0.88090123]
[1748833791640,4.185,2501.1,2501.0,3.99831677]
[1748833792513,4.185,2501.1,2500.9,4.87938783]
[1748833792837,4.185,2501.1,2500.9,3.99849795]
[1748833793034,4.185,2501.1,2500.8,3.99864475]
[1748833793239,4.185,2501.1,2500.9,3.9985041]
[1748833793534,4.185,2501.1,2500.8,4.59225524]
[1748833793941,4.185,2501.1,2500.9,3.99846445]
[1748833794333,4.185,2501.1,2500.8,0.59362448]
[1748833794505,4.185,2501.1,2500.9,3.9985356]
[1748833795917,4.18,2501.1,2501.0,3.99836235]
[1748833797209,0.7577,2501.4,2501.0,3.99836235]
[1748833797405,4.177,2501.3,2501.1,3.99822167]
[1748833797704,4.177,2501.3,2500.9,3.99847456]
[1748833798109,4.177,2501.3,2500.9,3.99856051]
[1748833799355,4.177,2501.3,2501.0,3.9983733]
[1748833799864,4.177,2501.3,2500.9,3.99847895]
[1748833800014,4.177,2501.3,2501.1,3.99815519]
[1748833800450,0.7754,2501.7,2501.5,3.99746546]
[1748833800753,0.7754,2501.7,2500.9,0.4810079]
[1748833800754,4.176,2501.6,2501.3,3.99782706]
[1748833801122,4.176,2501.6,2501.0,4.82670063]
[1748833801420,4.176,2501.6,2501.0,5.47007148]
[1748833801662,15.35966495,2501.5,2500.9,3.99845514]
[1748833802139,15.35966495,2501.5,2501.0,3.99839284]
[1748833802343,2.81195984,2501.1,2500.6,3.9990096]
[1748833802540,4.182,2501.0,2500.7,3.9988479]
[1748833802743,0.8073,2500.9,2500.3,0.7967]
[1748833802932,0.8073,2500.9,2500.3,4.79618838]
[1748833803257,0.8073,2500.9,2500.5,3.99919953]
[1748833804528,0.8073,2500.9,2500.6,3.99893397]
[1748833805258,0.7838,2501.1,2500.8,3.9987204]
[1748833805427,4.78172616,2501.3,2500.7,3.99888031]
[1748833805625,8.17850263,2501.0,2500.3,0.7967]
[1748833805930,0.8112,2500.9,2500.5,3.99919716]
[1748833806470,0.8112,2500.9,2499.7,4.18]
[1748833806471,0.7986,2500.8,2499.8,4.00027407]
[1748833806674,2.81195984,2500.5,2499.9,0.48283741]
[1748833806970,4.9796,2500.4,2500.0,3.99997152]
[1748833807178,4.9796,2500.4,2500.2,3.99966035]
[1748833810373,4.9796,2500.4,2500.1,3.99981719]
[1748833810574,4.9796,2500.4,2499.9,4.48294436]
[1748833810877,4.9796,2500.4,2500.1,3.99978929]
[1748833811375,4.9796,2500.4,2500.0,4.4482405]
[1748833811837,4.9796,2500.4,2500.0,3.99994606]
[1748833812040,4.9796,2500.4,2499.9,4.48292343]
[1748833812477,4.9796,2500.4,2499.6,4.00054343]
[1748833812478,3.99970192,2500.2,2499.6,4.00054343]
[1748833812681,3.36195984,2500.3,2499.3,1.12]
[1748833812682,0.55,2499.5,2499.3,0.005]
[1748833812851,5.5323,2499.4,2499.3,0.005]
[1748833813051,2.81195984,2499.9,2499.3,0.005]
[1748833813389,8.0,2499.7,2499.6,4.0006401]
[1748833813544,4.191,2499.9,2499.8,4.00022595]
[1748833813878,4.191,2499.9,2499.5,4.0007428]
[1748833814055,4.191,2499.9,2499.6,4.00063176]
[1748833814254,4.191,2499.9,2499.3,0.005]
[1748833814255,0.55,2499.7,2499.3,0.005]
[1748833814548,0.7801,2499.6,2499.3,0.005]
[1748833814754,4.191,2499.5,2499.3,4.00608168]
[1748833815156,4.191,2499.5,2499.3,0.005]
[1748833815542,8.55,2499.4,2499.3,0.005]
[1748833816074,9.3427,2499.4,2499.3,0.005]
[1748833816273,16.15562007,2499.4,2499.3,0.005]
[1748833816482,5.5367,2499.4,2499.3,0.005]
[1748833816685,5.5367,2499.4,2498.5,4.00733044]
[1748833816686,4.55135222,2499.2,2498.5,0.005]
[1748833816871,2.81195984,2498.8,2498.5,0.005]
[1748833817072,2.81195984,2498.6,2498.5,0.005]
[1748833817280,0.7917,2498.6,2498.5,0.005]
[1748833817585,0.7917,2498.6,2498.0,4.00310901]
[1748833817586,0.55,2498.5,2498.2,4.00278185]
[1748833817806,4.221,2498.4,2497.8,4.0035231]
[1748833817943,4.221,2498.4,2497.8,4.48702541]
[1748833818140,1.3371,2498.9,2498.4,4.00249848]
[1748833818345,1.3435,2498.5,2497.7,4.00353539]
[1748833818554,0.55,2498.2,2497.1,4.78638966]
[1748833818778,0.55,2498.0,2497.6,4.00372528]
[1748833819276,4.23,2498.1,2497.6,0.80077204]
[1748833819443,4.23,2498.1,2497.6,0.7742]
[1748833819643,4.23,2498.1,2497.8,4.00339615]
[1748833820042,0.55,2498.4,2498.0,4.00308827]
[1748833820240,4.231,2498.3,2498.1,4.00295412]
[1748833820439,4.234,2498.3,2498.0,4.00316784]
[1748833820643,4.234,2498.3,2497.8,4.003412]
[1748833821075,4.234,2498.3,2497.9,4.00323367]
[1748833821286,4.234,2498.3,2498.0,4.00319643]
[1748833821781,4.234,2498.3,2497.8,4.00344503]
[1748833821782,8.55,2498.2,2497.8,4.00349258]
[1748833821973,8.55,2498.2,2497.3,4.78039379]
[1748833822173,8.55,2498.2,2497.8,4.00343466]
[1748833822392,8.55,2498.2,2497.4,0.58953938]
[1748833822558,4.236,2498.1,2498.0,4.00309898]
[1748833822759,4.236,2498.1,2497.9,4.00325908]
[1748833823080,4.236,2498.1,2498.0,4.00320256]
[1748833823248,4.236,2498.1,2497.9,4.00326704]
[1748833823448,4.236,2498.1,2497.4,0.58953938]
[1748833823664,4.236,2498.1,2497.7,4.00357418]
[1748833824253,0.8149,2498.0,2497.6,4.00377193]
[1748833824584,0.8149,2498.0,2497.6,4.00374375]
[1748833825483,0.8149,2498.0,2497.6,4.00375688]
[1748833825907,0.8149,2498.0,2497.6,4.00370448]
[1748833826056,0.8149,2498.0,2497.0,1.9011]
[1748833826266,0.8149,2498.0,2497.2,4.00433335]
[1748833826486,4.81819028,2498.0,2497.4,4.00407425]
[1748833826667,0.8149,2498.0,2497.0,1.91705131]
[1748833826866,0.8149,2498.0,2497.0,0.7851]
[1748833826867,0.55,2497.9,2497.0,0.7851]
[1748833827192,1.3579,2497.4,2496.7,0.8075]
[1748833827402,4.234,2497.3,2496.7,0.8075]
[1748833827595,4.234,2497.3,2496.4,4.81323249]
[1748833827782,4.134,2497.3,2496.4,0.8075]
[1748833828097,0.8079,2497.9,2496.9,0.8075]
[1748833828391,0.8079,2497.9,2497.8,4.0035231]
[1748833828593,0.66841483,2498.4,2497.5,0.8075]
[1748833828803,4.246,2498.4,2498.0,4.00311168]
[1748833829001,4.246,2498.4,2497.9,4.00329167]
[1748833829205,0.8079,2498.2,2498.0,4.00319279]
[1748833829407,0.8079,2498.2,2497.9,4.00333697]
[1748833829706,0.8079,2498.2,2497.9,4.00335896]
[1748833829898,0.8079,2498.2,2498.1,4.00304231]
[1748833830706,5.0549,2498.2,2498.1,4.00304231]
[1748833831604,5.0549,2498.2,2498.0,4.00315007]
[1748833831806,5.0549,2498.2,2497.5,0.8075]
[1748833831807,5.0549,2498.2,2498.1,4.00304231]
[1748833832110,5.0549,2498.2,2497.6,4.00378523]
[1748833832430,5.0549,2498.2,2498.0,4.00313779]
[1748833832913,5.0549,2498.2,2498.1,4.00304231]
[1748833833407,5.0549,2498.2,2498.0,4.00311712]
[1748833833609,5.0549,2498.2,2498.1,4.00304231]
[1748833834680,5.0549,2498.2,2497.8,4.00341579]
[1748833835112,5.0549,2498.2,2497.9,4.00333855]
[1748833835312,5.0549,2498.2,2497.8,4.0035231]
[1748833835513,0.55,2498.1,2497.3,0.8167]
[1748833835689,0.55,2498.1,2497.6,4.00382613]
[1748833835894,0.55,2498.1,2497.6,4.00374206]
[1748833836513,0.55,2498.1,2497.7,4.00367505]
[1748833836714,0.55,2498.1,2497.8,4.00343687]
[1748833837019,4.241,2498.0,2497.7,4.00363947]
[1748833837219,0.8079,2498.2,2497.7,0.40036395]
[1748833837381,4.242,2498.1,2498.0,4.00320256]
[1748833837904,4.242,2498.1,2497.9,4.00329263]
[1748833838100,4.242,2498.1,2498.0,4.00320256]
[1748833840899,4.242,2498.1,2497.9,4.00326465]
[1748833841084,7.06169591,2498.1,2497.7,4.00354311]
[1748833841286,7.06169591,2498.1,2497.8,4.00350375]
[1748833842009,7.06169591,2498.1,2497.8,4.00341402]
[1748833842328,4.242,2498.1,2497.5,4.787704]
[1748833842487,4.242,2498.1,2497.9,4.00326571]
[1748833842887,4.242,2498.1,2497.8,4.00346738]
[1748833843189,4.242,2498.1,2497.9,4.003348]
[1748833843389,4.242,2498.1,2497.8,4.00348814]
[1748833843823,4.242,2498.1,2498.0,4.00320256]
[1748833844221,0.825,2497.6,2496.7,5.95870443]
[1748833844527,0.825,2497.6,2497.4,4.00416433]
[1748833844528,4.232,2497.5,2497.4,4.00416433]
[1748833844740,4.232,2497.5,2497.3,4.00429551]
[1748833844911,4.232,2497.5,2497.4,4.00416433]
[1748833846227,0.825,2498.1,2497.4,7.70508113]
[1748833846427,0.825,2498.1,2497.9,4.00334624]
[1748833846593,4.231,2498.0,2497.9,4.00334624]
[1748833847330,2.83898919,2498.3,2498.1,4.0030355]
[1748833847533,2.83898919,2498.3,2497.8,4.0035231]
[1748833847534,4.229,2498.2,2497.8,4.0035231]
[1748833847736,4.229,2498.2,2497.9,0.47694231]
[1748833848033,4.229,2498.2,2498.1,4.00304231]
[1748833848722,2.83898919,2498.3,2498.2,4.77038207]
[1748833849096,2.83898919,2498.3,2498.2,4.00288207]
[1748833850434,4.234,2498.5,2498.3,4.00258601]
[1748833850647,4.234,2498.5,2498.2,4.00279343]
[1748833851341,4.234,2498.5,2498.1,4.0029041]
[1748833851542,4.234,2498.5,2498.3,4.0027134]
[1748833852621,4.234,2498.5,2498.4,4.00256163]
[1748833852824,4.234,2498.5,2498.2,4.00275672]
[1748833853026,4.234,2498.5,2498.3,4.00272136]
[1748833853238,4.227,2498.4,2498.3,4.00265996]
[1748833853551,4.227,2498.4,2498.2,4.00281894]
[1748833853919,4.227,2498.4,2498.0,4.00311272]
[1748833854239,4.227,2498.4,2498.1,4.00303109]
[1748833854618,4.227,2498.4,2498.0,4.00313201]
[1748833855241,4.227,2498.4,2498.1,4.00304037]
[1748833855541,4.227,2498.4,2497.8,0.8313]
[1748833855708,0.7924,2498.3,2497.8,4.00344156]
[1748833856119,0.7924,2498.3,2497.5,1.959]
[1748833856120,4.79516669,2498.3,2497.5,4.81396484]
[1748833856325,4.00304555,2498.1,2497.6,4.00368619]
[1748833856530,4.225,2498.0,2497.6,4.00368619]
[1748833857054,4.81899912,2497.9,2497.4,4.00412982]
[1748833857465,4.81899912,2497.9,2497.3,4.00428413]
[1748833858031,0.8156,2497.5,2496.9,4.00496615]
[1748833858259,4.225,2497.4,2496.9,0.48207662]
[1748833858426,4.225,2497.4,2496.8,0.8158]
[1748833858777,4.225,2497.4,2497.1,4.00457283]
[1748833859142,4.225,2497.4,2496.8,0.8158]
[1748833859343,4.225,2497.4,2497.1,4.00452678]
[1748833859754,0.55,2497.8,2497.1,4.00452678]
[1748833859755,4.229,2497.8,2497.6,4.00373683]
[1748833860479,4.229,2497.8,2497.7,4.00368338]
[1748833860841,4.229,2497.8,2497.5,4.00397668]
[1748833860842,1.20778348,2498.1,2497.8,4.0035231]
[1748833861056,4.228,2498.0,2497.6,4.0037459]
[1748833861393,4.228,2498.0,2497.6,4.00383235]
[1748833861685,0.8304,2498.1,2498.0,4.00320256]
[1748833861896,0.8264,2498.4,2498.1,4.00295283]
[1748833862039,0.8264,2498.4,2498.1,4.00288539]
[1748833862238,3.01825363,2498.6,2497.8,4.76334898]
[1748833862519,2.24915363,2498.6,2498.5,4.00240144]
[1748833862775,0.62928496,2499.3,2498.5,4.00240144]
[1748833862776,1.14664227,2499.2,2498.9,4.00176077]
[1748833862941,0.7691,2499.2,2498.7,4.00208108]
[1748833863145,0.37754227,2499.4,2499.3,4.00112031]
[1748833863343,1.16864227,2499.8,2499.5,4.00064595]
[1748833863544,4.241,2499.7,2498.9,5.15070858]
[1748833863779,0.7911,2499.8,2499.3,4.001061]
[1748833863780,5.0311,2499.8,2499.3,4.001061]
[1748833863973,4.24,2499.7,2499.3,4.00112031]
[1748833864177,0.7911,2499.8,2499.1,4.00144051]
[1748833864457,4.74,2499.7,2499.2,4.00122037]
[1748833864662,4.74,2499.7,2498.9,1.74462086]
[1748833864872,4.74,2499.7,2499.2,4.00121965]
[1748833865590,4.74,2499.7,2499.0,4.00160064]
[1748833865591,0.7911,2499.6,2499.0,4.00150365]
[1748833865958,0.7911,2499.6,2499.1,4.00143516]
[1748833866361,9.41502045,2499.5,2498.9,4.00164596]
[1748833867060,0.55,2499.4,2498.9,4.00164596]
[1748833867387,0.7911,2499.6,2499.2,4.00117662]
[1748833867579,4.237,2499.3,2499.2,4.00117662]
[1748833867887,4.237,2499.3,2499.1,4.00137]
[1748833869094,4.237,2499.3,2499.2,4.0012804]
[1748833870271,4.237,2499.3,2499.0,4.00155167]
[1748833870472,4.237,2499.3,2499.1,4.00144051]
[1748833870789,4.237,2499.3,2499.2,4.0012804]
[1748833870991,0.7911,2499.6,2499.4,4.00094502]
[1748833871189,4.231,2499.5,2498.9,0.80035963]
[1748833871393,4.231,2499.5,2498.3,4.00261604]
[1748833871593,4.231,2499.5,2499.1,4.00129631]
[1748833871998,4.232,2499.4,2499.2,4.0011207]
[1748833872294,8.7797,2499.8,2499.3,4.00101249]
[1748833872459,4.233,2499.5,2499.3,4.00101249]
[1748833872792,4.232,2499.6,2499.5,4.00070521]
[1748833873573,4.232,2499.6,2499.4,4.00089798]
[1748833873754,4.232,2499.6,2499.5,4.00080016]
[1748833873960,0.55,2500.0,2499.5,4.00080016]
[1748833874279,4.23,2499.9,2499.7,4.00045233]
[1748833874483,4.23,2499.9,2499.4,4.0008655]
[1748833875060,4.228,2499.8,2499.4,4.0008655]
[1748833875265,4.228,2499.8,2499.5,4.00066989]
[1748833875965,4.228,2499.8,2499.4,4.00091844]
[1748833876393,4.228,2499.8,2499.5,4.0006977]
[1748833877198,4.228,2499.8,2499.6,4.00063927]
[1748833877403,4.228,2499.8,2499.6,4.00062768]
[1748833877702,4.228,2499.8,2499.5,4.00079626]
[1748833878002,4.80816812,2500.1,2499.5,4.40076606]
[1748833878295,4.222,2500.0,2499.5,4.00079029]
[1748833878595,0.8083,2500.1,2499.5,4.00079029]
[1748833878596,0.8083,2500.1,2499.7,4.00045358]
[1748833878897,4.221,2500.0,2499.7,4.00045358]
[1748833879084,4.221,2500.0,2499.6,4.00056487]
[1748833879397,4.221,2500.0,2499.3,4.00109549]
[1748833879700,4.55027349,2499.9,2499.3,4.00111007]
[1748833880007,4.55027349,2499.9,2499.1,4.81300773]
[1748833880008,4.55027349,2499.9,2499.4,4.0009409]
[1748833880291,0.8301,2499.6,2499.2,4.00114018]
[1748833880496,0.8301,2499.6,2499.4,4.00089226]
[1748833880673,4.221,2499.5,2499.4,4.00096023]
[1748833880878,4.221,2499.5,2499.3,4.00098227]
[1748833881425,4.221,2499.5,2499.4,4.00096023]
[1748833881787,0.7863,2499.9,2498.9,4.79613003]
[1748833882097,0.7863,2499.9,2499.5,4.00071215]
[1748833882723,0.7863,2499.9,2499.6,4.00062808]
[1748833883089,0.7863,2499.9,2499.4,4.00085159]
[1748833883285,0.7863,2499.9,2499.6,4.00062795]
[1748833883588,0.7863,2499.9,2499.5,4.00069447]
[1748833884223,0.7863,2499.9,2499.4,4.00088153]
[1748833884415,0.7863,2499.9,2499.3,4.81276512]
[1748833884602,6.20047984,2499.9,2499.3,4.00106512]
[1748833885108,6.20047984,2499.9,2499.5,4.00076405]
[1748833886131,6.20047984,2499.9,2499.0,5.37248542]
[1748833886419,4.55038652,2499.8,2499.2,4.0012804]
[1748833886590,4.218,2499.7,2499.3,4.00110102]
[1748833887129,4.218,2499.7,2499.3,4.80123529]
[1748833887300,4.218,2499.7,2499.1,4.00144051]
[1748833887488,4.218,2499.7,2499.0,1.370913]
[1748833887489,0.7863,2499.9,2499.6,4.0006401]
[1748833887685,4.216,2499.8,2499.6,4.0006401]
[1748833887928,0.7863,2499.9,2499.6,4.00050373]
[1748833888130,8.813,2500.2,2499.8,4.00022963]
[1748833888433,4.218,2500.1,2500.0,3.99989317]
[1748833888723,0.813,2500.4,2500.0,3.99989317]
[1748833888926,4.218,2500.3,2500.0,3.99989317]
[1748833889425,8.0,2500.5,2500.1,3.99974731]
[1748833889611,4.216,2500.2,2500.1,3.99974731]
[1748833889815,8.813,2500.7,2500.3,3.9994245]
[1748833890194,4.215,2500.6,2500.3,3.9994245]
[1748833890522,4.214,2500.5,2500.3,3.9994245]
[1748833890732,0.813,2500.7,2500.2,3.999668]
[1748833890892,4.214,2500.6,2500.4,3.99933396]
[1748833891234,4.214,2500.6,2500.3,3.99945249]
[1748833891436,8.813,2500.7,2500.4,3.99922032]
[1748833891741,8.813,2500.7,2500.0,0.8268]
[1748833891742,4.214,2500.6,2500.5,3.99920015]
[1748833892037,4.213,2500.6,2500.5,3.99920015]
[1748833892203,4.213,2500.6,2500.3,3.99946111]
[1748833892728,4.213,2500.6,2500.2,3.9996656]
[1748833892927,5.41417984,2500.5,2500.0,3.99991154]
[1748833893140,9.3816,2500.4,2499.7,0.799]
[1748833893306,9.3816,2500.4,2499.9,4.00002929]
[1748833893511,9.3816,2500.4,2500.0,3.99999156]
[1748833893897,9.3816,2500.4,2499.8,4.55522002]
[1748833893898,13.38096226,2500.4,2499.9,4.00008104]
[1748833894176,13.38096226,2500.4,2499.9,4.00015158]
[1748833895362,13.38096226,2500.4,2499.2,8.21217343]
[1748833895363,4.00010852,2500.0,2499.0,2.538113]
[1748833895529,9.62317984,2499.9,2499.5,4.00078307]
[1748833898124,9.62317984,2499.9,2499.2,4.00124615]
[1748833898325,0.55,2499.7,2499.2,4.00122839]
[1748833898667,0.55,2499.7,2499.1,4.25515832]
[1748833898835,4.55057255,2499.7,2499.1,4.25515832]
[1748833899040,4.55057255,2499.7,2499.2,4.001275]
[1748833899554,0.55,2499.7,2499.2,4.001275]
[1748833900100,0.8159,2499.8,2499.3,0.82565003]
[1748833900362,0.8159,2499.8,2499.4,4.00087473]
[1748833901259,0.8159,2499.8,2499.3,4.82672704]
[1748833901473,4.81624169,2499.8,2499.3,0.82565003]
[1748833901634,4.81624169,2499.8,2499.3,4.82669001]
[1748833901956,4.55059485,2499.7,2499.1,0.2538113]
[1748833902375,4.55059485,2499.7,2499.2,4.00127702]
[1748833902586,4.00065438,2499.6,2499.1,4.00137056]
[1748833902770,4.00065438,2499.6,2498.9,4.00171919]
[1748833902771,0.7744,2499.4,2498.9,4.00171919]
[1748833903068,0.7744,2499.4,2499.0,4.00158531]
[1748833903943,0.7744,2499.4,2499.1,4.00142308]
[1748833904144,0.7744,2499.4,2498.9,4.56547622]
[1748833904145,0.7744,2499.4,2499.0,4.00156204]
[1748833904344,0.7744,2499.4,2499.1,4.00131932]
[1748833906340,4.199,2499.5,2499.2,4.00126213]
[1748833906740,4.199,2499.5,2499.3,4.00110939]
[1748833906945,4.199,2499.5,2499.2,4.00120441]
[1748833907985,4.199,2499.5,2499.2,4.00127277]
[1748833908477,8.1998969,2499.5,2498.9,4.56540455]
[1748833908845,8.1998969,2499.5,2499.0,4.00158541]
[1748833909041,4.199,2499.5,2499.0,4.00158541]
[1748833909245,4.199,2499.5,2499.1,4.00143806]
[1748833909685,4.199,2499.5,2499.0,4.0015217]
[1748833910189,4.00141682,2499.2,2498.6,4.00215008]
[1748833910401,4.988,2499.1,2498.6,4.8026323]
[1748833910888,8.98949298,2499.1,2498.6,4.8026323]
[1748833911062,4.0017486,2499.0,2498.4,4.00252449]
[1748833911383,4.0017486,2499.0,2498.5,4.00239759]
[1748833911587,8.55,2499.0,2498.5,4.00230773]
[1748833912091,4.80132988,2498.6,2498.0,4.00304919]